[Event "*** Titled Tuesday Blitz"]
[Site "Chess.com"]
[Date "2021.04.06"]
[Round "4"]
[White "Tpros"]
[Black "Nemsko"]
[Result "1-0"]
[WhiteElo "2519"]
[BlackElo "2313"]
[TimeControl "180+1"]
[EndTime "10:39:41 PDT"]
[Termination "Tpros won by resignation"]

1. c4 {[%clk 0:03:00.9]} 1... e5 {[%clk 0:02:59.3]} 2. d3 {[%clk 0:03:00.4]}
2... Nc6 {[%clk 0:02:58.3]} 3. a3 {[%clk 0:02:59.6]} 3... f5 {[%clk 0:02:53.3]}
4. g3 {[%clk 0:02:59]} 4... d6 {[%clk 0:02:52.9]} 5. Bg2 {[%clk 0:02:59.1]} 5...
Nf6 {[%clk 0:02:49.9]} 6. Nc3 {[%clk 0:02:59.7]} 6... Be7 {[%clk 0:02:47.2]} 7.
Bg5 {[%clk 0:02:59.2]} 7... O-O {[%clk 0:02:45.8]} 8. e3 {[%clk 0:02:57.3]} 8...
Be6 {[%clk 0:02:42.3]} 9. Bxf6 {[%clk 0:02:55.9]} 9... Bxf6 {[%clk 0:02:39.5]}
10. Nge2 {[%clk 0:02:56.8]} 10... Kh8 {[%clk 0:02:37.8]} 11. Rc1 {[%clk
0:02:51.2]} 11... Qd7 {[%clk 0:02:30.7]} 12. O-O {[%clk 0:02:41.7]} 12... Rab8
{[%clk 0:02:19.3]} 13. Nd5 {[%clk 0:02:41.4]} 13... Bg5 {[%clk 0:02:17]} 14. f4
{[%clk 0:02:39.9]} 14... Bh6 {[%clk 0:02:17.4]} 15. Qa4 {[%clk 0:02:24]} 15...
a6 {[%clk 0:02:15.7]} 16. b4 {[%clk 0:02:22.8]} 16... Qf7 {[%clk 0:01:52.4]} 17.
Nec3 {[%clk 0:02:12.2]} 17... Nd8 {[%clk 0:01:44.3]} 18. Qc2 {[%clk 0:01:51.4]}
18... c6 {[%clk 0:01:42.6]} 19. Nb6 {[%clk 0:01:48.3]} 19... Qc7 {[%clk
0:01:36.7]} 20. c5 {[%clk 0:01:42.3]} 20... d5 {[%clk 0:01:31.5]} 21. d4 {[%clk
0:01:39.4]} 21... e4 {[%clk 0:01:22.7]} 22. a4 {[%clk 0:01:38.2]} 22... g6
{[%clk 0:01:15.7]} 23. b5 {[%clk 0:01:37.3]} 23... axb5 {[%clk 0:01:10.9]} 24.
axb5 {[%clk 0:01:37.2]} 24... Bg7 {[%clk 0:01:11.5]} 25. Ra1 {[%clk 0:01:36.1]}
25... Nf7 {[%clk 0:01:11.6]} 26. Ra7 {[%clk 0:01:35.4]} 26... Nh6 {[%clk
0:01:02.9]} 27. h3 {[%clk 0:01:33.9]} 27... Ng8 {[%clk 0:00:55.2]} 28. bxc6
{[%clk 0:01:31.7]} 28... Qxc6 {[%clk 0:00:56.1]} 29. Qa4 {[%clk 0:01:30]} 29...
Ne7 {[%clk 0:00:42.7]} 30. Rb1 {[%clk 0:01:26.9]} 30... Qxa4 {[%clk 0:00:41]}
31. Rxa4 {[%clk 0:01:26]} 31... Nc6 {[%clk 0:00:41.4]} 32. Nb5 {[%clk
0:01:25.6]} 32... Bf6 {[%clk 0:00:26.7]} 33. Nc7 {[%clk 0:01:20]} 33... Bg8
{[%clk 0:00:24.1]} 34. Ncxd5 {[%clk 0:01:07.8]} 34... Bg7 {[%clk 0:00:22.4]} 35.
Bf1 {[%clk 0:01:00.9]} 35... h6 {[%clk 0:00:21.1]} 36. Nc7 {[%clk 0:00:31.2]}
36... g5 {[%clk 0:00:15.9]} 37. Nd7 {[%clk 0:00:29.1]} 37... Rbc8 {[%clk
0:00:12.3]} 38. Nxf8 {[%clk 0:00:28.3]} 38... Rxf8 {[%clk 0:00:13.2]} 39. Rxb7
{[%clk 0:00:25.1]} 39... Bd5 {[%clk 0:00:12.8]} 1-0

[Event "*** Titled Tuesday Blitz"]
[Site "Chess.com"]
[Date "2021.04.06"]
[Round "4"]
[White "KrolPawel92OnTwitch"]
[Black "Grieve72"]
[Result "1-0"]
[WhiteElo "2654"]
[BlackElo "2489"]
[TimeControl "180+1"]
[EndTime "10:39:42 PDT"]
[Termination "KrolPawel92OnTwitch won by resignation"]

1. d4 {[%clk 0:02:52.1]} 1... d5 {[%clk 0:02:59.7]} 2. c4 {[%clk 0:02:52.1]}
2... e6 {[%clk 0:02:59.9]} 3. Nc3 {[%clk 0:02:52.2]} 3... c6 {[%clk 0:03:00.5]}
4. e4 {[%clk 0:02:51.7]} 4... dxe4 {[%clk 0:03:01.4]} 5. Nxe4 {[%clk 0:02:52.2]}
5... Bb4+ {[%clk 0:03:01.8]} 6. Bd2 {[%clk 0:02:51.1]} 6... Qxd4 {[%clk
0:03:01.6]} 7. Bxb4 {[%clk 0:02:51.2]} 7... Qxe4+ {[%clk 0:03:02.2]} 8. Be2
{[%clk 0:02:39]} 8... Na6 {[%clk 0:03:01.6]} 9. Ba3 {[%clk 0:02:35.1]} 9... c5
{[%clk 0:02:39]} 10. Nf3 {[%clk 0:02:26.6]} 10... Ne7 {[%clk 0:02:27.8]} 11. O-O
{[%clk 0:02:25.3]} 11... O-O {[%clk 0:02:27.9]} 12. Bd3 {[%clk 0:02:23.7]} 12...
Qg4 {[%clk 0:02:27.2]} 13. h3 {[%clk 0:02:22.5]} 13... Qh5 {[%clk 0:02:25.7]}
14. Qe2 {[%clk 0:02:13.6]} 14... Ng6 {[%clk 0:01:28.9]} 15. Qe3 {[%clk
0:02:08.3]} 15... b6 {[%clk 0:01:23.7]} 16. Rad1 {[%clk 0:01:45.2]} 16... Bb7
{[%clk 0:01:22.9]} 17. Be2 {[%clk 0:01:44.7]} 17... Qf5 {[%clk 0:01:11.3]} 18.
Rd7 {[%clk 0:01:37.9]} 18... Bc6 {[%clk 0:00:58.6]} 19. Rd6 {[%clk 0:01:37.7]}
19... Rac8 {[%clk 0:00:59.2]} 20. Rfd1 {[%clk 0:01:35.1]} 20... Nf4 {[%clk
0:00:54.8]} 21. Ne5 {[%clk 0:01:23.1]} 21... Bxg2 {[%clk 0:00:32.9]} 22. Bg4
{[%clk 0:01:05.7]} 22... Qe4 {[%clk 0:00:16.7]} 23. Kh2 {[%clk 0:00:50.5]} 23...
Ng6 {[%clk 0:00:11.1]} 24. Nd7 {[%clk 0:00:36.8]} 24... Rfe8 {[%clk 0:00:06.2]}
25. Qg3 {[%clk 0:00:36.3]} 25... Nf4 {[%clk 0:00:04.7]} 26. Nf6+ {[%clk
0:00:27.8]} 26... gxf6 {[%clk 0:00:02.2]} 27. Bf5+ {[%clk 0:00:26.7]} 27... Ng6
{[%clk 0:00:02.3]} 28. Bxe4 {[%clk 0:00:26.4]} 28... Bxe4 {[%clk 0:00:03.2]} 29.
b3 {[%clk 0:00:23]} 29... f5 {[%clk 0:00:02.6]} 30. Bb2 {[%clk 0:00:22.5]} 30...
Rc7 {[%clk 0:00:01.9]} 31. Rd7 {[%clk 0:00:22.5]} 31... Re7 {[%clk 0:00:01.7]}
32. Rd8+ {[%clk 0:00:21.9]} 1-0

[Event "*** Titled Tuesday Blitz"]
[Site "Chess.com"]
[Date "2021.04.06"]
[Round "4"]
[White "elegant285"]
[Black "reniite"]
[Result "1-0"]
[WhiteElo "2370"]
[BlackElo "2034"]
[TimeControl "180+1"]
[EndTime "10:39:42 PDT"]
[Termination "elegant285 won by resignation"]

1. d4 {[%clk 0:03:00.9]} 1... Nf6 {[%clk 0:02:58.4]} 2. c4 {[%clk 0:03:00.8]}
2... e6 {[%clk 0:02:58.7]} 3. Nf3 {[%clk 0:03:00.3]} 3... b6 {[%clk 0:02:58]} 4.
a3 {[%clk 0:02:59.6]} 4... Bb7 {[%clk 0:02:56.7]} 5. Nc3 {[%clk 0:02:59.7]} 5...
d6 {[%clk 0:02:52.8]} 6. g3 {[%clk 0:02:58.4]} 6... Nbd7 {[%clk 0:02:51.4]} 7.
Bg2 {[%clk 0:02:58.1]} 7... Be7 {[%clk 0:02:51.6]} 8. O-O {[%clk 0:02:57.7]}
8... O-O {[%clk 0:02:51.6]} 9. Re1 {[%clk 0:02:52.8]} 9... Ne4 {[%clk 0:02:46]}
10. Bd2 {[%clk 0:02:45.1]} 10... f5 {[%clk 0:02:39.9]} 11. d5 {[%clk 0:02:37.3]}
11... Nxd2 {[%clk 0:02:34.6]} 12. Qxd2 {[%clk 0:02:28]} 12... e5 {[%clk
0:02:35.2]} 13. e3 {[%clk 0:02:13.1]} 13... a5 {[%clk 0:02:32.2]} 14. b4 {[%clk
0:02:12.4]} 14... axb4 {[%clk 0:02:30.9]} 15. axb4 {[%clk 0:02:13.3]} 15... Qe8
{[%clk 0:02:26.6]} 16. Nb5 {[%clk 0:02:08]} 16... Rxa1 {[%clk 0:01:52.4]} 17.
Rxa1 {[%clk 0:02:08.9]} 17... Qb8 {[%clk 0:01:51.5]} 18. Na7 {[%clk 0:01:40.3]}
18... Bf6 {[%clk 0:01:48.3]} 19. Nc6 {[%clk 0:01:37.8]} 19... Qc8 {[%clk
0:01:40.3]} 20. Bh3 {[%clk 0:01:35]} 20... g6 {[%clk 0:01:38.1]} 21. Ra2 {[%clk
0:01:20.4]} 21... Bxc6 {[%clk 0:01:30.3]} 22. dxc6 {[%clk 0:01:21.3]} 22... Nb8
{[%clk 0:01:30.9]} 23. Qd5+ {[%clk 0:01:08.1]} 23... Kg7 {[%clk 0:01:28.4]} 24.
Ra7 {[%clk 0:01:00.3]} 24... Na6 {[%clk 0:01:16.1]} 25. Qb5 {[%clk 0:00:47.7]}
25... Nb8 {[%clk 0:01:09.1]} 26. Qxb6 {[%clk 0:00:47.6]} 26... Rf7 {[%clk
0:01:07]} 27. Qb7 {[%clk 0:00:45.5]} 27... Qxb7 {[%clk 0:00:42.2]} 28. cxb7
{[%clk 0:00:46.4]} 28... Rf8 {[%clk 0:00:38.9]} 29. b5 {[%clk 0:00:41.9]} 29...
Kf7 {[%clk 0:00:32.8]} 30. Nd2 {[%clk 0:00:35.9]} 30... Ke7 {[%clk 0:00:29.4]}
31. Nb3 {[%clk 0:00:34.1]} 31... Kd7 {[%clk 0:00:28.3]} 32. e4 {[%clk
0:00:32.3]} 32... Bg5 {[%clk 0:00:20.4]} 33. Ra8 {[%clk 0:00:28.5]} 33... Bh6
{[%clk 0:00:15.4]} 34. exf5 {[%clk 0:00:27.5]} 34... gxf5 {[%clk 0:00:15.4]} 35.
Bxf5+ {[%clk 0:00:27.7]} 35... Rxf5 {[%clk 0:00:14.8]} 36. Rxb8 {[%clk
0:00:27.8]} 1-0

[Event "*** Titled Tuesday Blitz"]
[Site "Chess.com"]
[Date "2021.04.06"]
[Round "4"]
[White "GelmanAlexander"]
[Black "jonaszmb"]
[Result "0-1"]
[WhiteElo "2645"]
[BlackElo "2510"]
[TimeControl "180+1"]
[EndTime "10:39:43 PDT"]
[Termination "jonaszmb won on time"]

1. d4 {[%clk 0:03:00.9]} 1... d5 {[%clk 0:02:58.6]} 2. Nc3 {[%clk 0:03:01]} 2...
Nf6 {[%clk 0:02:57.8]} 3. Bf4 {[%clk 0:03:01.1]} 3... e6 {[%clk 0:02:56]} 4. Nb5
{[%clk 0:03:00.9]} 4... Na6 {[%clk 0:02:50.6]} 5. e3 {[%clk 0:03:00.9]} 5... c6
{[%clk 0:02:44.2]} 6. Nc3 {[%clk 0:03:00.4]} 6... Nc7 {[%clk 0:02:41.8]} 7. Nf3
{[%clk 0:02:58.9]} 7... Bd6 {[%clk 0:02:42.3]} 8. Ne5 {[%clk 0:02:58.9]} 8...
O-O {[%clk 0:02:40.4]} 9. Qf3 {[%clk 0:02:59]} 9... c5 {[%clk 0:02:31.3]} 10.
dxc5 {[%clk 0:02:58.9]} 10... Bxc5 {[%clk 0:02:32.2]} 11. Bd3 {[%clk 0:02:59.4]}
11... d4 {[%clk 0:02:24]} 12. exd4 {[%clk 0:02:34.1]} 12... Bxd4 {[%clk
0:02:24.9]} 13. Rd1 {[%clk 0:01:52.6]} 13... Bxc3+ {[%clk 0:01:50.2]} 14. bxc3
{[%clk 0:01:52.7]} 14... Qe7 {[%clk 0:01:50.8]} 15. Bg5 {[%clk 0:01:40.8]} 15...
h6 {[%clk 0:01:25.7]} 16. h4 {[%clk 0:01:39.4]} 16... Ncd5 {[%clk 0:00:51]} 17.
c4 {[%clk 0:01:23.6]} 17... Nb4 {[%clk 0:00:50.8]} 18. Be4 {[%clk 0:01:00.3]}
18... Rd8 {[%clk 0:00:50.4]} 19. Rb1 {[%clk 0:00:24.3]} 19... a5 {[%clk
0:00:27.7]} 20. Ng4 {[%clk 0:00:17.8]} 20... hxg5 {[%clk 0:00:19.4]} 21. hxg5
{[%clk 0:00:17.8]} 21... Nxe4 {[%clk 0:00:20]} 22. Qxe4 {[%clk 0:00:18.2]} 22...
Qxg5 {[%clk 0:00:20.2]} 23. Qh7+ {[%clk 0:00:06.5]} 23... Kf8 {[%clk 0:00:20.1]}
24. O-O {[%clk 0:00:03.4]} 24... Qxg4 {[%clk 0:00:18.7]} 25. Qh8+ {[%clk
0:00:01.7]} 25... Ke7 {[%clk 0:00:19]} 26. Qh2 {[%clk 0:00:01.1]} 26... Bd7
{[%clk 0:00:19]} 27. Rbd1 {[%clk 0:00:01.4]} 27... Bc6 {[%clk 0:00:18.6]} 28.
Qc7+ {[%clk 0:00:02.3]} 28... Ke8 {[%clk 0:00:17.7]} 29. Rxd8+ {[%clk 0:00:02]}
29... Rxd8 {[%clk 0:00:18.6]} 30. f3 {[%clk 0:00:02.3]} 30... Qd4+ {[%clk
0:00:17.8]} 31. Kh2 {[%clk 0:00:02.2]} 31... Qd6+ {[%clk 0:00:18]} 0-1

[Event "*** Titled Tuesday Blitz"]
[Site "Chess.com"]
[Date "2021.04.06"]
[Round "4"]
[White "Matols"]
[Black "Ave_Mariia"]
[Result "1-0"]
[WhiteElo "2305"]
[BlackElo "2464"]
[TimeControl "180+1"]
[EndTime "10:39:43 PDT"]
[Termination "Matols won by resignation"]

1. d4 {[%clk 0:03:00.9]} 1... Nf6 {[%clk 0:02:58.5]} 2. c4 {[%clk 0:03:00.7]}
2... e6 {[%clk 0:02:58.6]} 3. g3 {[%clk 0:03:00.9]} 3... d5 {[%clk 0:02:58.4]}
4. Nf3 {[%clk 0:03:00.5]} 4... dxc4 {[%clk 0:02:58.2]} 5. Bg2 {[%clk 0:02:59.7]}
5... a6 {[%clk 0:02:55.3]} 6. Ne5 {[%clk 0:02:47.2]} 6... Bb4+ {[%clk
0:02:40.2]} 7. Nc3 {[%clk 0:02:31.8]} 7... Nd5 {[%clk 0:02:24]} 8. Bd2 {[%clk
0:02:15.2]} 8... O-O {[%clk 0:02:20.9]} 9. Nxc4 {[%clk 0:02:10.3]} 9... b5
{[%clk 0:02:14.1]} 10. Ne5 {[%clk 0:02:07.6]} 10... Bb7 {[%clk 0:02:10.6]} 11.
O-O {[%clk 0:02:06.8]} 11... Bxc3 {[%clk 0:02:01.3]} 12. bxc3 {[%clk 0:02:05.8]}
12... Nd7 {[%clk 0:02:00.1]} 13. Nxd7 {[%clk 0:01:50.7]} 13... Qxd7 {[%clk
0:02:00]} 14. e4 {[%clk 0:01:50.6]} 14... Nb6 {[%clk 0:01:59]} 15. Qh5 {[%clk
0:01:39.4]} 15... Nc4 {[%clk 0:01:56.5]} 16. Bf4 {[%clk 0:01:30.4]} 16... Rac8
{[%clk 0:01:42.4]} 17. Rad1 {[%clk 0:01:27.9]} 17... Qe7 {[%clk 0:01:42.3]} 18.
Rfe1 {[%clk 0:01:15.6]} 18... Qa3 {[%clk 0:01:34.8]} 19. d5 {[%clk 0:00:52.8]}
19... e5 {[%clk 0:01:14.4]} 20. Bxe5 {[%clk 0:00:43]} 20... g6 {[%clk
0:01:13.8]} 21. Qg5 {[%clk 0:00:41.5]} 21... h6 {[%clk 0:01:07]} 22. Qf6 {[%clk
0:00:36]} 22... Nxe5 {[%clk 0:01:07.1]} 23. Qxe5 {[%clk 0:00:36]} 23... Rfe8
{[%clk 0:01:04.7]} 24. Qd4 {[%clk 0:00:34.6]} 24... Qxa2 {[%clk 0:00:58]} 25. e5
{[%clk 0:00:32.8]} 25... Rcd8 {[%clk 0:00:51.3]} 26. e6 {[%clk 0:00:20.9]} 26...
fxe6 {[%clk 0:00:32.6]} 27. Qf6 {[%clk 0:00:20.6]} 27... Qc2 {[%clk 0:00:26.3]}
28. Be4 {[%clk 0:00:19.6]} 28... Qb3 {[%clk 0:00:16.7]} 29. Qxg6+ {[%clk
0:00:19.1]} 29... Kf8 {[%clk 0:00:17.2]} 30. Qxh6+ {[%clk 0:00:19.2]} 30... Ke7
{[%clk 0:00:16.4]} 31. Qg7+ {[%clk 0:00:18.3]} 31... Kd6 {[%clk 0:00:11.1]} 32.
dxe6+ {[%clk 0:00:18.3]} 32... Kc5 {[%clk 0:00:09.7]} 33. Rxd8 {[%clk
0:00:17.3]} 1-0

[Event "*** Titled Tuesday Blitz"]
[Site "Chess.com"]
[Date "2021.04.06"]
[Round "4"]
[White "manuellarrea"]
[Black "Slovak_fighter2000"]
[Result "0-1"]
[WhiteElo "2252"]
[BlackElo "2492"]
[TimeControl "180+1"]
[EndTime "10:39:44 PDT"]
[Termination "Slovak_fighter2000 won on time"]

1. e4 {[%clk 0:03:00.9]} 1... e6 {[%clk 0:03:00]} 2. d4 {[%clk 0:03:00.2]} 2...
d5 {[%clk 0:03:00.5]} 3. Nc3 {[%clk 0:03:00.2]} 3... Nf6 {[%clk 0:02:58.7]} 4.
e5 {[%clk 0:03:00.1]} 4... Nfd7 {[%clk 0:02:58.9]} 5. f4 {[%clk 0:03:00.5]} 5...
c5 {[%clk 0:02:59.1]} 6. Nf3 {[%clk 0:03:01]} 6... Nc6 {[%clk 0:02:59.7]} 7. Be3
{[%clk 0:03:01.2]} 7... Be7 {[%clk 0:02:59.7]} 8. Qd2 {[%clk 0:03:00.8]} 8...
O-O {[%clk 0:03:00.2]} 9. Be2 {[%clk 0:03:01.2]} 9... a6 {[%clk 0:03:00]} 10.
O-O {[%clk 0:03:01.1]} 10... b5 {[%clk 0:03:00.2]} 11. Nd1 {[%clk 0:02:59.3]}
11... Qb6 {[%clk 0:02:59.3]} 12. c3 {[%clk 0:02:59]} 12... b4 {[%clk 0:02:59.8]}
13. Bd3 {[%clk 0:02:54.8]} 13... a5 {[%clk 0:02:59.4]} 14. Nf2 {[%clk
0:02:51.9]} 14... Ba6 {[%clk 0:02:58.4]} 15. Kh1 {[%clk 0:02:40.9]} 15... bxc3
{[%clk 0:02:52.2]} 16. bxc3 {[%clk 0:02:39.4]} 16... Bxd3 {[%clk 0:02:50]} 17.
Nxd3 {[%clk 0:02:38.3]} 17... c4 {[%clk 0:02:47.5]} 18. Nf2 {[%clk 0:02:27.4]}
18... Rab8 {[%clk 0:02:47.1]} 19. Qe2 {[%clk 0:02:24.7]} 19... Qb2 {[%clk
0:02:44.4]} 20. Bd2 {[%clk 0:02:24.3]} 20... Nb6 {[%clk 0:02:36.7]} 21. a4
{[%clk 0:02:17.8]} 21... Qc2 {[%clk 0:02:23.6]} 22. Rfc1 {[%clk 0:02:12.8]}
22... Qg6 {[%clk 0:02:22.5]} 23. g4 {[%clk 0:02:03.3]} 23... Nd7 {[%clk
0:02:06.8]} 24. Be3 {[%clk 0:01:52.5]} 24... Rb3 {[%clk 0:02:02.4]} 25. Nd2
{[%clk 0:01:45.7]} 25... Rb2 {[%clk 0:02:00.1]} 26. Qf3 {[%clk 0:01:43]} 26...
f6 {[%clk 0:01:53.4]} 27. f5 {[%clk 0:01:35.6]} 27... Qf7 {[%clk 0:01:52.5]} 28.
exf6 {[%clk 0:01:23.9]} 28... Qxf6 {[%clk 0:01:44.2]} 29. Rg1 {[%clk 0:01:07.3]}
29... Nb6 {[%clk 0:01:42.4]} 30. Nh3 {[%clk 0:00:55.4]} 30... e5 {[%clk
0:01:34.8]} 31. Bg5 {[%clk 0:00:38.9]} 31... Qd6 {[%clk 0:01:33.8]} 32. Bxe7
{[%clk 0:00:37.1]} 32... Qxe7 {[%clk 0:01:33.6]} 33. Rg2 {[%clk 0:00:20.7]}
33... exd4 {[%clk 0:01:31.4]} 34. cxd4 {[%clk 0:00:19.6]} 34... Nxd4 {[%clk
0:01:31.1]} 35. Qc3 {[%clk 0:00:19.3]} 35... Rxd2 {[%clk 0:01:24.5]} 36. Qxd2
{[%clk 0:00:17.6]} 36... Nb3 {[%clk 0:01:24]} 37. Qb2 {[%clk 0:00:14.2]} 37...
Nxa1 {[%clk 0:01:18.3]} 38. Qxa1 {[%clk 0:00:13.3]} 38... Re8 {[%clk 0:01:13.2]}
39. Ng1 {[%clk 0:00:12.2]} 39... Qe4 {[%clk 0:01:11.2]} 40. Qc3 {[%clk 0:00:11]}
40... Ra8 {[%clk 0:00:52.3]} 41. h3 {[%clk 0:00:08.9]} 41... Nxa4 {[%clk
0:00:51]} 42. Qa3 {[%clk 0:00:07.1]} 42... c3 {[%clk 0:00:48.9]} 43. Kh2 {[%clk
0:00:05.2]} 43... c2 {[%clk 0:00:46.4]} 0-1

[Event "*** Titled Tuesday Blitz"]
[Site "Chess.com"]
[Date "2021.04.06"]
[Round "4"]
[White "xurramid77"]
[Black "ridnani2021"]
[Result "1-0"]
[WhiteElo "2611"]
[BlackElo "2348"]
[TimeControl "180+1"]
[EndTime "10:39:46 PDT"]
[Termination "xurramid77 won by resignation"]

1. e4 {[%clk 0:03:00.9]} 1... c5 {[%clk 0:03:00]} 2. c3 {[%clk 0:03:01.1]} 2...
Nf6 {[%clk 0:02:59]} 3. e5 {[%clk 0:03:01.5]} 3... Nd5 {[%clk 0:02:59.4]} 4. Bc4
{[%clk 0:03:02.1]} 4... Nb6 {[%clk 0:02:58.5]} 5. Bb3 {[%clk 0:03:02.5]} 5...
Nc6 {[%clk 0:02:58.6]} 6. Nf3 {[%clk 0:03:02.8]} 6... c4 {[%clk 0:02:55.3]} 7.
Bc2 {[%clk 0:03:03.1]} 7... d5 {[%clk 0:02:55.7]} 8. exd6 {[%clk 0:03:02.8]}
8... exd6 {[%clk 0:02:55.8]} 9. d4 {[%clk 0:03:02.7]} 9... cxd3 {[%clk
0:02:55.1]} 10. Qxd3 {[%clk 0:03:02.7]} 10... g6 {[%clk 0:02:52.9]} 11. O-O
{[%clk 0:03:01.5]} 11... Be7 {[%clk 0:02:52.9]} 12. Bh6 {[%clk 0:03:00.9]} 12...
Bf5 {[%clk 0:02:51.4]} 13. Qd2 {[%clk 0:02:59.6]} 13... Bxc2 {[%clk 0:02:52.3]}
14. Qxc2 {[%clk 0:03:00.3]} 14... Qd7 {[%clk 0:02:49.5]} 15. a4 {[%clk
0:03:00.4]} 15... O-O-O {[%clk 0:02:47.4]} 16. a5 {[%clk 0:03:00.9]} 16... Nc4
{[%clk 0:02:47.4]} 17. a6 {[%clk 0:03:01.5]} 17... b6 {[%clk 0:02:47.3]} 18.
Nbd2 {[%clk 0:02:55.5]} 18... N4e5 {[%clk 0:02:42.3]} 19. Nd4 {[%clk 0:02:48.5]}
19... Bf6 {[%clk 0:02:37.2]} 20. h3 {[%clk 0:02:46]} 20... Kb8 {[%clk
0:02:33.4]} 21. Qe4 {[%clk 0:02:45.4]} 21... Rhe8 {[%clk 0:02:27.5]} 22. Qf4
{[%clk 0:02:45.8]} 22... Be7 {[%clk 0:02:20.1]} 23. Qg3 {[%clk 0:02:41.4]} 23...
f5 {[%clk 0:02:18.2]} 24. N2f3 {[%clk 0:02:33]} 24... Bf6 {[%clk 0:02:06.5]} 25.
Nxc6+ {[%clk 0:02:26.2]} 25... Qxc6 {[%clk 0:02:04.4]} 26. Nd4 {[%clk
0:02:25.6]} 26... Qd7 {[%clk 0:02:01.3]} 27. Rfd1 {[%clk 0:02:15.1]} 27... Nc4
{[%clk 0:01:47.1]} 28. b3 {[%clk 0:02:11.5]} 28... Ne5 {[%clk 0:01:44.4]} 29. c4
{[%clk 0:01:59.7]} 29... Nc6 {[%clk 0:01:40.1]} 30. Nxc6+ {[%clk 0:01:56.5]}
30... Qxc6 {[%clk 0:01:41]} 31. Ra2 {[%clk 0:01:51.6]} 31... Be5 {[%clk
0:01:39.8]} 32. Bf4 {[%clk 0:01:50.8]} 32... Bxf4 {[%clk 0:01:37.4]} 33. Qxf4
{[%clk 0:01:50]} 33... Re4 {[%clk 0:01:37.9]} 34. Qg3 {[%clk 0:01:45.8]} 34...
f4 {[%clk 0:01:37.5]} 35. Qf3 {[%clk 0:01:43.5]} 35... Kc7 {[%clk 0:01:35.1]}
36. Rad2 {[%clk 0:01:41]} 36... Rde8 {[%clk 0:01:34.1]} 37. Kh2 {[%clk
0:01:39.5]} 37... R8e7 {[%clk 0:01:14.2]} 38. Rd5 {[%clk 0:01:20.5]} 38... R7e5
{[%clk 0:01:08.1]} 39. Qd3 {[%clk 0:01:14.6]} 39... Re6 {[%clk 0:01:00.3]} 40.
Qc3 {[%clk 0:01:10.1]} 40... R4e5 {[%clk 0:00:58.7]} 41. b4 {[%clk 0:01:06.3]}
41... Rxd5 {[%clk 0:00:50.1]} 42. Rxd5 {[%clk 0:01:06.4]} 42... Qd7 {[%clk
0:00:50.6]} 43. Qd4 {[%clk 0:01:05.2]} 43... f3 {[%clk 0:00:45]} 44. gxf3 {[%clk
0:01:01.7]} 44... Qf7 {[%clk 0:00:43.5]} 45. Kg2 {[%clk 0:01:00.2]} 45... Rf6
{[%clk 0:00:40.1]} 46. c5 {[%clk 0:00:57.9]} 46... Rf4 {[%clk 0:00:30.6]} 47.
cxb6+ {[%clk 0:00:52.2]} 47... axb6 {[%clk 0:00:29.9]} 48. Qc3+ {[%clk 0:00:50]}
48... Kd7 {[%clk 0:00:25.8]} 49. Rd2 {[%clk 0:00:40]} 1-0

[Event "*** Titled Tuesday Blitz"]
[Site "Chess.com"]
[Date "2021.04.06"]
[Round "4"]
[White "CraiggoryC"]
[Black "Larciano"]
[Result "1-0"]
[WhiteElo "2246"]
[BlackElo "1966"]
[TimeControl "180+1"]
[EndTime "10:39:46 PDT"]
[Termination "CraiggoryC won by checkmate"]

1. e4 {[%clk 0:03:00.9]} 1... e5 {[%clk 0:02:43.9]} 2. Nf3 {[%clk 0:02:59.7]}
2... Nc6 {[%clk 0:02:42.3]} 3. Bb5 {[%clk 0:03:00.2]} 3... a6 {[%clk 0:02:35.2]}
4. Ba4 {[%clk 0:02:58.8]} 4... Nf6 {[%clk 0:02:34]} 5. O-O {[%clk 0:02:58.2]}
5... Be7 {[%clk 0:02:28.4]} 6. d3 {[%clk 0:02:57.2]} 6... d6 {[%clk 0:02:26.9]}
7. c4 {[%clk 0:02:51.7]} 7... O-O {[%clk 0:02:18.6]} 8. h3 {[%clk 0:02:49.1]}
8... Bd7 {[%clk 0:02:18.8]} 9. Nc3 {[%clk 0:02:48.4]} 9... h6 {[%clk 0:02:19.2]}
10. Rb1 {[%clk 0:02:43.3]} 10... Nh7 {[%clk 0:02:11]} 11. b4 {[%clk 0:02:38.8]}
11... Bg5 {[%clk 0:02:10.6]} 12. b5 {[%clk 0:02:21.9]} 12... Nb8 {[%clk
0:02:08.4]} 13. bxa6 {[%clk 0:02:17.7]} 13... bxa6 {[%clk 0:02:02.5]} 14. Nd5
{[%clk 0:01:52.9]} 14... Bxc1 {[%clk 0:01:54.7]} 15. Bxd7 {[%clk 0:01:37.6]}
15... Nxd7 {[%clk 0:01:54.1]} 16. Qxc1 {[%clk 0:01:38.2]} 16... Nc5 {[%clk
0:01:42]} 17. Qa3 {[%clk 0:01:37.6]} 17... Qd7 {[%clk 0:01:35.5]} 18. Nxe5
{[%clk 0:01:36.6]} 18... dxe5 {[%clk 0:01:32.1]} 19. Qxc5 {[%clk 0:01:34.8]}
19... Rab8 {[%clk 0:01:24.2]} 20. Qxc7 {[%clk 0:01:18.4]} 20... Qxc7 {[%clk
0:01:17.1]} 21. Nxc7 {[%clk 0:01:19.3]} 21... Rbd8 {[%clk 0:01:16.6]} 22. Nd5
{[%clk 0:01:12.8]} 22... Rd6 {[%clk 0:01:15.5]} 23. Rb7 {[%clk 0:01:08.2]} 23...
Ng5 {[%clk 0:01:15.1]} 24. Rfb1 {[%clk 0:00:59.6]} 24... Ne6 {[%clk 0:01:15]}
25. R1b6 {[%clk 0:00:56.7]} 25... Rfd8 {[%clk 0:01:13.3]} 26. Rb8 {[%clk
0:00:53.8]} 26... Nd4 {[%clk 0:01:10]} 27. Rxd8+ {[%clk 0:00:39.6]} 27... Rxd8
{[%clk 0:01:07]} 28. Rxa6 {[%clk 0:00:35.6]} 28... Rb8 {[%clk 0:01:06.2]} 29. a4
{[%clk 0:00:30]} 29... Rb1+ {[%clk 0:00:52.1]} 30. Kh2 {[%clk 0:00:29.6]} 30...
Ra1 {[%clk 0:00:49.9]} 31. a5 {[%clk 0:00:19.3]} 31... f6 {[%clk 0:00:48.7]} 32.
Ra8+ {[%clk 0:00:18.5]} 32... Kf7 {[%clk 0:00:48.5]} 33. a6 {[%clk 0:00:19]}
33... Nc6 {[%clk 0:00:46.2]} 34. c5 {[%clk 0:00:11.6]} 34... Ra5 {[%clk
0:00:42.6]} 35. Rc8 {[%clk 0:00:09.3]} 35... Nd4 {[%clk 0:00:39]} 36. Rc7+
{[%clk 0:00:07.8]} 36... Ke8 {[%clk 0:00:31.5]} 37. a7 {[%clk 0:00:08]} 37...
Nb5 {[%clk 0:00:29.9]} 38. Rc8+ {[%clk 0:00:07.3]} 38... Kd7 {[%clk 0:00:30.1]}
39. a8=Q {[%clk 0:00:07.9]} 39... Rxa8 {[%clk 0:00:29.5]} 40. Rxa8 {[%clk
0:00:08.8]} 40... Nd4 {[%clk 0:00:27.2]} 41. Ra7+ {[%clk 0:00:08.5]} 41... Ke6
{[%clk 0:00:27.1]} 42. Rxg7 {[%clk 0:00:09.4]} 42... f5 {[%clk 0:00:26.4]} 43.
Re7# {[%clk 0:00:09.5]} 1-0